bitfinex/quotes_ETHUSD_20250524
["timestamp","ask_amount","ask_price","bid_price","bid_amount"]
[1748101335210,3.92079984,2550.5,2550.4,1.83899829]
[1748101335411,3.92079984,2550.5,2550.4,45.23999829]
[1748101336143,5.29356436,2550.5,2550.4,16.928]
[1748101336346,5.29356436,2550.5,2550.4,43.401]
[1748101337342,3.92079984,2550.5,2550.4,43.401]
[1748101338144,3.92079984,2550.5,2550.4,16.928]
[1748101338345,3.92079984,2550.5,2550.4,43.399]
[1748101340667,4.70659984,2550.5,2550.4,16.928]
[1748101340969,4.70659984,2550.5,2550.4,31.644]
[1748101341159,3.92218387,2549.6,2549.4,1.83899829]
[1748101341346,3.92218387,2549.6,2549.5,43.394]
[1748101342575,3.92189881,2549.8,2549.7,0.803]
[1748101344269,3.92189881,2549.8,2549.7,17.35799829]
[1748101344475,3.92189881,2549.8,2549.7,29.11199829]
[1748101348353,3.92189881,2549.8,2549.7,16.55499829]
[1748101348554,3.92189881,2549.8,2549.7,28.30899829]
[1748101348932,3.92189881,2549.8,2549.5,17.7412]
[1748101348933,3.92218387,2549.6,2549.5,17.7412]
[1748101349069,3.92218387,2549.6,2549.5,46.04519829]
[1748101350888,3.92218387,2549.6,2549.5,45.22899829]
[1748101351669,3.92218387,2549.6,2549.5,45.23099829]
[1748101352484,3.92218387,2549.6,2549.5,43.392]
[1748101354200,5.77202747,2549.6,2549.5,43.392]
[1748101354356,5.77202747,2549.6,2549.5,31.638]
[1748101354685,5.77202747,2549.6,2549.5,43.392]
[1748101356077,11.72202747,2549.6,2549.5,43.392]
[1748101359212,9.87218387,2549.6,2549.5,43.392]
[1748101359390,3.92218387,2549.6,2549.5,44.71908486]
[1748101359584,3.92218387,2549.6,2549.5,44.2127]
[1748101360495,3.92218387,2549.6,2549.5,44.71908486]
[1748101360831,3.92218387,2549.6,2549.5,44.2127]
[1748101361588,3.92205464,2549.7,2549.5,52.2127]
[1748101361793,3.92205464,2549.7,2549.6,2.65969829]
[1748101364126,3.92203004,2549.7,2549.6,2.65969829]
[1748101364703,3.92203004,2549.7,2549.6,0.8207]
[1748101364994,3.92203004,2549.7,2549.6,2.65969829]
[1748101366929,3.92187307,2549.9,2549.6,2.65969829]
[1748101367114,3.92172242,2549.9,2549.8,1.83899829]
[1748101372537,3.92172242,2549.9,2549.8,13.59199829]
[1748101372842,3.92172242,2549.9,2549.8,28.30399829]
[1748101375929,3.92172242,2549.9,2549.8,16.55099829]
[1748101376253,3.92203004,2549.7,2549.6,0.8207]
[1748101376453,3.92203004,2549.7,2549.6,37.12369829]
[1748101377958,3.92203004,2549.7,2549.6,10.65969829]
[1748101378132,3.92203004,2549.7,2549.6,37.12369829]
[1748101384165,3.92203004,2549.7,2549.6,25.37069829]
[1748101384460,3.92203004,2549.7,2549.6,36.30299829]
[1748101388863,3.92162051,2550.0,2549.7,8.7915]
[1748101389090,3.92162051,2550.0,2549.9,1.83899829]
[1748101389443,3.92133102,2550.2,2549.9,1.83899829]
[1748101389444,3.92149814,2550.1,2549.9,1.83899829]
[1748101389748,3.92156862,2550.0,2549.7,8.7915]
[1748101389949,3.92143501,2550.1,2549.8,11.753]
[1748101390151,3.92169089,2550.0,2549.8,11.753]
[1748101390394,3.92169089,2550.0,2549.9,8.0]
[1748101390895,3.92169089,2550.0,2549.9,9.83899829]
[1748101391101,3.92121911,2550.3,2549.9,11.67799658]
[1748101391301,0.808,2550.8,2550.1,9.83899829]
[1748101391509,3.92098819,2550.4,2550.2,26.463]
[1748101392298,3.92110732,2550.3,2550.2,26.463]
[1748101392492,5.95,2550.9,2550.3,0.7915]
[1748101392694,3.92023292,2550.9,2550.8,1.83899829]
[1748101392896,3.92023292,2550.9,2550.8,45.22399829]
[1748101396164,3.92018503,2550.9,2550.8,46.01549829]
[1748101397660,3.92018503,2550.9,2550.8,43.382]
[1748101397988,3.92018503,2550.9,2550.8,45.22099829]
[1748101407009,0.7505,2551.7,2550.9,8.804]
[1748101407333,3.91990052,2551.1,2551.0,1.83899829]
[1748101407819,3.91980706,2551.2,2551.0,1.83899829]
[1748101407976,3.91987769,2551.1,2551.0,1.83899829]
[1748101408482,3.91987769,2551.1,2551.0,13.58799829]
[1748101412799,3.92003136,2551.0,2550.9,8.804]
[1748101413119,3.92003136,2551.0,2550.9,36.28799829]
[1748101413477,3.92003136,2551.0,2550.9,16.54099829]
[1748101413715,3.92003136,2551.0,2550.9,28.28799829]
[1748101415485,3.92018503,2550.9,2550.8,16.923]
[1748101415722,3.92018503,2550.9,2550.8,43.371]
[1748101417022,3.92018503,2550.9,2550.8,45.20999829]
[1748101418498,3.92018503,2550.9,2550.8,18.76199829]
[1748101418698,3.92018503,2550.9,2550.8,45.21099829]
[1748101419434,3.92018503,2550.9,2550.8,18.76199829]
[1748101419636,5.17531444,2550.9,2550.8,43.373]
[1748101420147,5.17531444,2550.9,2550.8,31.625]
[1748101420148,5.96641444,2550.9,2550.8,31.625]
[1748101420311,5.96641444,2550.9,2550.8,43.373]
[1748101420934,5.96641444,2550.9,2550.8,16.923]
[1748101421141,5.96641444,2550.9,2550.8,43.373]
[1748101421511,4.71128503,2550.9,2550.8,43.373]
[1748101422019,4.71128503,2550.9,2550.8,31.625]
[1748101422219,4.71128503,2550.9,2550.8,43.373]
[1748101422536,4.71128503,2550.9,2550.8,16.923]
[1748101422741,4.71128503,2550.9,2550.8,43.373]
[1748101423041,6.56140444,2550.9,2550.8,43.373]
[1748101423239,6.56140444,2550.9,2550.8,16.923]
[1748101423405,6.56140444,2550.9,2550.8,43.373]
[1748101423924,4.71128503,2550.9,2550.8,43.373]
[1748101424241,4.71128503,2550.9,2550.8,43.374]
[1748101424609,4.71128503,2550.9,2550.8,18.76199829]
[1748101424945,4.71128503,2550.9,2550.8,45.21299829]
[1748101426748,4.71128503,2550.9,2550.8,43.374]
[1748101426947,6.56140444,2550.9,2550.8,43.374]
[1748101427977,6.56140444,2550.9,2550.8,31.626]
[1748101428249,6.56140444,2550.9,2550.8,43.374]
[1748101428452,6.56140444,2550.9,2550.8,31.626]
[1748101428639,6.56140444,2550.9,2550.8,43.374]
[1748101429042,12.51140444,2550.9,2550.8,31.626]
[1748101429855,4.71254031,2550.1,2550.0,28.667]
[1748101430055,4.71254031,2550.1,2550.0,43.371]
[1748101431157,4.71254031,2550.1,2550.0,43.372]
[1748101431363,4.75181859,2550.1,2550.0,16.919]
[1748101431561,19.957312,2550.1,2549.3,1.83899829]
[1748101431766,4.6962993,2549.2,2549.1,0.05]
[1748101432129,12.6962993,2549.2,2549.1,0.05]
[1748101432463,14.54209513,2549.2,2549.1,0.05]
[1748101432823,14.54209513,2549.2,2549.1,14.754]
[1748101433022,4.6962993,2549.2,2549.1,14.754]
[1748101433268,4.6962993,2549.2,2549.1,26.503]
[1748101433740,12.6962993,2549.2,2549.1,14.758]
[1748101439193,4.6962993,2549.2,2549.1,14.758]
[1748101440768,4.6962993,2549.2,2549.1,0.05]
[1748101441066,5.5581953,2549.2,2549.1,14.833]
[1748101441487,11.5081953,2549.2,2549.1,14.833]
[1748101441697,10.6462993,2549.2,2549.1,14.833]
[1748101450870,10.6462993,2549.2,2549.1,31.765]
[1748101451430,9.8727993,2549.2,2549.1,31.765]
[1748101451631,3.9227993,2549.2,2549.1,33.60399829]
[1748101451835,3.9227993,2549.2,2549.1,43.526]
[1748101453637,3.9227993,2549.2,2549.1,45.36499829]
[1748101453831,3.9227993,2549.2,2549.1,46.15639829]
[1748101454036,3.9226607,2549.3,2549.1,46.15639829]
[1748101454236,3.9227993,2549.2,2549.1,46.15639829]
[1748101457740,3.9227993,2549.2,2549.1,19.61239829]
[1748101457943,3.9227993,2549.2,2549.1,17.7734]
[1748101458292,3.9227993,2549.2,2549.1,43.524]
[1748101460396,3.9227993,2549.2,2549.1,31.767]
[1748101460579,3.9227993,2549.2,2549.1,43.524]
[1748101462296,3.9227993,2549.2,2549.1,46.11989829]
[1748101463843,3.9227993,2549.2,2549.1,19.57789829]
[1748101464183,3.9227993,2549.2,2549.1,46.11889829]
[1748101464383,5.95,2549.5,2549.2,0.7569]
[1748101464384,3.92271408,2549.3,2549.2,0.7569]
[1748101464586,3.92271408,2549.3,2549.2,2.59589829]
[1748101467178,3.92271408,2549.3,2549.2,14.35189829]
[1748101470185,3.92271408,2549.3,2549.2,29.19289829]
[1748101473716,3.92271408,2549.3,2549.2,27.3529]
[1748101474787,3.92271408,2549.3,2549.2,0.7569]
[1748101474988,3.92271408,2549.3,2549.2,27.3529]
[1748101475530,3.92271408,2549.3,2549.2,15.5969]
[1748101475702,3.92271408,2549.3,2549.2,26.596]
[1748101477503,3.9227993,2549.2,2549.1,16.982]
[1748101477693,3.9227993,2549.2,2549.1,43.578]
[1748101478535,3.9227993,2549.2,2549.1,45.41699829]
[1748101485903,3.9227993,2549.2,2549.1,46.23489829]
[1748101489101,3.9227993,2549.2,2549.1,45.41699829]
[1748101492597,3.9227993,2549.2,2549.1,16.982]
[1748101492916,3.9227993,2549.2,2549.1,43.578]
[1748101493214,3.9227993,2549.2,2549.1,18.82099829]
[1748101493423,3.9227993,2549.2,2549.1,45.41699829]
[1748101497823,3.9227993,2549.2,2549.1,18.82099829]
[1748101498126,3.9227993,2549.2,2549.1,45.41699829]
[1748101498737,3.9227993,2549.2,2549.1,31.822]
[1748101498885,3.9227993,2549.2,2549.1,43.578]
[1748101501247,3.9227993,2549.2,2549.1,43.478]
[1748101501937,3.9227993,2549.2,2549.1,31.722]
[1748101502107,3.9227993,2549.2,2549.1,43.478]
[1748101505757,3.9227993,2549.2,2549.1,45.79171648]
[1748101505958,3.9227993,2549.2,2549.1,46.12199829]
[1748101507178,3.9227993,2549.2,2549.1,18.82099829]
[1748101507326,3.9227993,2549.2,2549.1,45.31699829]
[1748101507871,3.9227993,2549.2,2549.1,43.478]
[1748101508042,3.9227993,2549.2,2549.1,16.982]
[1748101508242,3.9227993,2549.2,2549.1,43.478]
[1748101510065,3.9227993,2549.2,2549.1,45.31699829]
[1748101518294,3.68421817,2549.2,2549.1,45.31699829]
[1748101518493,6.56745521,2549.9,2549.2,0.7968]
[1748101518797,3.92172242,2549.9,2549.8,1.83899829]
[1748101518955,3.92172242,2549.9,2549.8,28.33499829]
[1748101519354,5.24736869,2550.0,2549.9,0.7968]
[1748101519355,1.32577646,2550.0,2549.9,0.7968]
[1748101519581,5.24734508,2550.0,2549.9,0.7968]
[1748101519749,3.92156862,2550.0,2549.9,26.494]
[1748101520593,3.92156862,2550.0,2549.9,26.69098462]
[1748101521454,3.92156862,2550.0,2549.9,27.07774161]
[1748101522785,3.92156862,2550.0,2549.9,14.738]
[1748101523022,4.59291365,2550.0,2549.9,26.492]
[1748101523729,3.92156862,2550.0,2549.9,26.492]
[1748101525010,3.92187622,2549.8,2549.7,1.83899829]
[1748101525213,3.92249156,2549.4,2549.3,2.63679829]
[1748101525407,3.92249156,2549.4,2549.3,29.12879829]
[1748101525655,3.92249156,2549.4,2549.3,28.33099829]
[1748101525860,3.92249156,2549.4,2549.3,28.88681578]
[1748101526066,3.92249156,2549.4,2549.3,28.33099829]
[1748101528056,3.92249156,2549.4,2549.3,1.83899829]
[1748101528222,3.92249156,2549.4,2549.3,28.33099829]
[1748101528556,3.9227993,2549.2,2549.1,17.7798]
[1748101528863,3.9227993,2549.2,2549.1,46.11079829]
[1748101531267,3.9227993,2549.2,2549.1,44.2718]
[1748101532880,3.92273104,2549.3,2549.1,44.2718]
[1748101533034,3.92273104,2549.3,2549.2,1.83899829]
[1748101534383,3.92256839,2549.4,2549.2,1.83899829]
[1748101534581,3.92264543,2549.3,2549.2,1.83899829]
[1748101540723,3.92256545,2549.4,2549.2,1.83899829]
[1748101541095,3.92242112,2549.5,2549.2,1.83899829]
[1748101541307,3.92242112,2549.5,2549.4,1.83899829]
[1748101541507,8.7601,2549.9,2549.4,1.83899829]
[1748101541684,0.8177,2550.3,2549.8,1.83899829]
[1748101541887,3.9216079,2550.0,2549.9,26.472]
[1748101543121,3.9216079,2550.0,2549.9,28.31099829]
[1748101545229,3.9216079,2550.0,2549.9,14.718]
[1748101545413,3.92203004,2549.7,2549.6,1.83899829]
[1748101545612,3.92203004,2549.7,2549.6,26.471]
[1748101547819,4.75193004,2549.7,2549.6,26.471]
[1748101550437,4.75193004,2549.7,2549.6,43.397]
[1748101551635,3.92203004,2549.7,2549.6,43.397]
[1748101553041,3.92203004,2549.7,2549.6,45.23599829]
[1748101553248,3.92198848,2549.8,2549.6,45.23599829]
[1748101553901,3.92203004,2549.7,2549.6,45.23599829]
[1748101554914,3.92187365,2549.9,2549.7,0.7717]
[1748101555211,3.92187622,2549.8,2549.7,0.7717]
[1748101555417,3.92167257,2550.0,2549.7,0.7717]
[1748101555740,3.92165353,2550.0,2549.7,0.7717]
[1748101556242,3.92175576,2549.9,2549.7,0.7717]
[1748101556401,3.92175576,2549.9,2549.8,1.83899829]
[1748101561745,3.92175576,2549.9,2549.8,28.30899829]
[1748101563647,3.92203004,2549.7,2549.6,18.76499829]
[1748101563843,3.92203004,2549.7,2549.6,45.23199829]
[1748101564859,3.92195512,2549.8,2549.6,45.23199829]
[1748101565020,3.92195512,2549.8,2549.7,0.8056]
[1748101565440,0.8234,2550.5,2549.8,3.92179034]
[1748101565641,3.92079984,2550.5,2550.4,1.83899829]
[1748101566049,3.92184814,2549.9,2549.6,16.926]
[1748101566349,3.92184814,2549.9,2549.7,0.8268]
[1748101566512,3.92187622,2549.8,2549.7,0.8268]
[1748101566715,3.92187622,2549.8,2549.7,27.2938]
[1748101567042,3.92187622,2549.8,2549.7,29.13279829]
[1748101567241,3.92187622,2549.8,2549.7,2.66579829]
[1748101567443,3.92187622,2549.8,2549.7,28.30599829]
[1748101570349,3.92174146,2549.9,2549.7,28.30599829]
[1748101571270,3.92187622,2549.8,2549.7,28.30599829]
[1748101571974,8.0,2550.5,2549.7,29.11949829]
[1748101572274,3.92110718,2550.4,2550.3,1.83899829]
[1748101572569,3.92110718,2550.4,2550.3,28.30399829]
[1748101573425,3.92110732,2550.3,2550.1,1.83899829]
[1748101573626,3.92110732,2550.3,2550.2,26.464]
[1748101573934,3.92156862,2550.0,2549.9,1.83899829]
[1748101574136,3.92156862,2550.0,2549.9,28.30299829]
[1748101574985,3.92156862,2550.0,2549.7,0.8135]
[1748101574986,3.92187622,2549.8,2549.7,1.83899829]
[1748101575145,3.92187622,2549.8,2549.7,28.30299829]
[1748101575640,0.7941,2550.2,2549.7,28.30299829]
[1748101575971,3.92167038,2550.0,2549.8,0.8135]
[1748101576546,3.92172242,2549.9,2549.8,0.8135]
[1748101577069,3.92172242,2549.9,2549.8,2.65249829]
[1748101577884,3.92143961,2550.1,2549.8,2.65249829]
[1748101578181,3.92119898,2550.3,2550.0,1.83899829]
[1748101578497,3.92119898,2550.3,2550.2,1.83899829]
[1748101578636,3.92119898,2550.3,2550.2,16.55199829]
[1748101580632,3.92110732,2550.3,2550.2,16.55199829]
[1748101581880,3.92105472,2550.4,2550.2,16.55199829]
[1748101582250,3.92110732,2550.3,2550.2,16.55199829]
[1748101589521,3.92108547,2550.4,2550.2,16.55199829]
[1748101590022,3.92108547,2550.4,2550.3,16.92]
[1748101590541,0.7702,2550.9,2550.3,16.92]
[1748101590738,0.8046,2551.2,2550.8,1.83899829]
[1748101590941,3.9200924,2551.0,2550.9,26.5001962]
[1748101591094,3.9200924,2551.0,2550.9,26.461]
[1748101592133,3.9200924,2551.0,2550.9,28.29999829]
[1748101594944,3.9200924,2551.0,2550.9,1.83899829]
[1748101595143,3.92079984,2550.5,2550.3,18.75899829]
[1748101595354,3.92095357,2550.4,2550.3,18.75899829]
[1748101595565,3.92095357,2550.4,2550.3,45.21499829]
[1748101599769,4.69905357,2550.4,2550.3,31.628]
[1748101599959,4.69905357,2550.4,2550.3,43.377]
[1748101600564,4.69905357,2550.4,2550.3,16.92]
[1748101600774,4.69905357,2550.4,2550.3,43.377]
[1748101601674,4.69905357,2550.4,2550.3,16.92]
[1748101601973,13.56103891,2550.4,2550.3,43.378]
[1748101603244,12.69905357,2550.4,2550.3,43.378]
[1748101603770,3.92095357,2550.4,2550.3,45.21699829]
[1748101607987,3.92095357,2550.4,2550.3,45.21799829]
[1748101610490,3.92095357,2550.4,2550.3,46.01099829]
[1748101611293,3.92095357,2550.4,2550.3,44.172]
[1748101614501,3.92095357,2550.4,2550.3,32.422]
[1748101614705,3.92095357,2550.4,2550.3,44.172]
[1748101616115,3.9209114,2550.5,2550.3,44.172]
[1748101616406,3.92095357,2550.4,2550.3,44.172]
[1748101619308,0.8079,2551.1,2550.3,44.172]
[1748101619509,3.92056833,2550.7,2550.3,44.172]
[1748101620819,3.92080401,2550.5,2550.3,44.172]
[1748101621119,3.92073443,2550.6,2550.3,44.172]
[1748101621326,3.92053527,2550.7,2550.3,44.172]
[1748101621525,3.92065636,2550.6,2550.3,44.172]
[1748101621686,3.92055438,2550.7,2550.3,43.379]
[1748101622022,3.92055438,2550.7,2550.4,0.833]
[1748101622621,8.0,2551.2,2550.4,0.833]
[1748101623007,3.92042016,2550.8,2550.4,0.833]
[1748101623242,3.92026612,2550.9,2550.4,4.75393357]
[1748101623437,4.74399348,2551.3,2550.4,0.833]
[1748101624044,3.92037367,2550.8,2550.4,0.833]
[1748101624431,3.92051295,2550.7,2550.4,0.833]
[1748101625442,3.92026248,2550.9,2550.4,4.75388748]
[1748101625645,4.74398063,2551.3,2550.4,0.833]
[1748101625846,3.92049374,2550.7,2550.5,11.749]
[1748101626649,3.9204211,2550.8,2550.5,11.749]
[1748101630654,3.9204211,2550.8,2550.4,0.833]
[1748101630862,3.9204211,2550.8,2550.6,11.748]
[1748101633885,4.88055521,2551.5,2550.6,11.748]
[1748101634173,3.91928992,2551.5,2551.0,0.7873]
[1748101634381,3.91917698,2551.6,2551.1,26.452]
[1748101634666,0.05,2551.9,2551.5,3.91922186]
[1748101634965,0.05,2551.9,2551.7,4.70625599]
[1748101635200,0.05,2551.9,2551.7,0.7873]
[1748101636663,3.96871206,2551.9,2551.8,26.448]
[1748101636862,13.27990685,2553.3,2551.8,31.14970241]
[1748101636863,0.62180876,2552.6,2551.8,31.14970241]
[1748101637163,3.91795556,2552.4,2551.9,0.03917653]
[1748101637331,3.91805106,2552.3,2551.9,0.55]
[1748101637678,3.91822482,2552.2,2551.9,0.55]
[1748101637964,3.91822482,2552.2,2552.0,26.448]
[1748101638269,3.91791979,2552.4,2552.0,26.448]
[1748101638270,3.918106,2552.3,2552.0,26.448]
[1748101638452,3.918106,2552.3,2552.1,26.448]
[1748101638976,3.91757423,2552.6,2551.8,0.7829]
[1748101639177,3.91895599,2551.7,2551.6,16.917]
[1748101639473,3.91895599,2551.7,2551.6,43.365]
[1748101640187,3.91886409,2551.8,2551.6,43.365]
[1748101640384,3.91879116,2551.9,2551.6,43.365]
[1748101640702,3.91895599,2551.7,2551.6,43.365]
[1748101640987,3.91895599,2551.7,2551.6,16.917]
[1748101641190,3.91895599,2551.7,2551.6,43.361]
[1748101641747,3.91895599,2551.7,2550.8,4.47033424]
[1748101641748,3.91972405,2551.2,2550.7,8.48759993]
[1748101642064,3.91987746,2551.2,2550.8,44.1465]
[1748101642268,3.91963912,2551.3,2550.9,0.47471819]
[1748101642464,3.9197321,2551.2,2550.9,0.47471819]
[1748101642879,3.91962396,2551.3,2550.9,0.47471819]
[1748101643497,3.91974092,2551.2,2550.9,0.47471819]
[1748101643667,3.91984722,2551.2,2551.0,26.444]
[1748101644055,3.91979591,2551.2,2550.8,18.19009993]
[1748101644257,4.68273236,2551.7,2550.9,26.444]
[1748101644456,3.91959445,2551.3,2550.9,26.444]
[1748101644915,3.91988747,2551.1,2550.8,18.66481812]
[1748101645061,3.9197929,2551.2,2551.0,26.444]
[1748101645261,3.9196486,2551.3,2551.0,26.444]
[1748101645480,3.91974798,2551.2,2551.1,26.444]
[1748101645958,3.91974798,2551.2,2550.8,18.19009993]
[1748101646268,3.92003136,2551.0,2550.9,26.444]
[1748101646502,3.92003136,2551.0,2550.9,14.7]
[1748101646709,3.92003136,2551.0,2550.9,26.444]
[1748101647321,3.91978429,2551.2,2550.9,26.444]
[1748101647495,3.91999004,2551.1,2550.9,26.444]
[1748101647675,3.91978429,2551.2,2550.9,26.444]
[1748101647879,3.92003136,2551.0,2550.9,26.444]
[1748101648223,8.8038,2551.3,2550.9,43.356]
[1748101648401,3.92003136,2551.0,2550.9,43.356]
[1748101648580,3.92044336,2550.8,2550.3,1.3773]
[1748101648780,3.92044336,2550.8,2550.4,43.357]
[1748101649824,4.72424336,2550.8,2550.5,26.445]
[1748101650177,0.8038,2550.8,2550.1,0.25441351]
[1748101650407,3.92124903,2550.3,2550.2,43.357]
[1748101650792,3.9207256,2550.6,2550.2,43.357]
[1748101650992,0.8038,2550.8,2550.3,11.745]
[1748101651202,3.92094811,2550.5,2550.3,11.745]
[1748101651421,3.92095357,2550.4,2550.3,11.745]
[1748101652011,3.92110732,2550.3,2550.2,16.912]
[1748101652509,3.92110732,2550.3,2550.2,43.359]
[1748101652726,3.92126107,2550.2,2550.1,0.05]
[1748101653040,3.92126107,2550.2,2550.1,43.412]
[1748101655772,3.92126107,2550.2,2550.1,43.411]
[1748101656277,3.92126107,2550.2,2550.1,16.964]
[1748101656429,3.92126107,2550.2,2550.1,43.411]
[1748101656629,0.7978,2550.8,2550.1,43.411]
[1748101656835,3.92097479,2550.4,2550.2,26.447]
[1748101657059,3.92081594,2550.5,2550.2,26.447]
[1748101657060,3.9208401,2550.5,2550.2,26.447]
[1748101657273,3.92100039,2550.4,2550.2,26.447]
[1748101657805,3.92116195,2550.3,2550.1,16.964]
[1748101658089,3.92126107,2550.2,2550.1,16.964]
[1748101658449,3.92126107,2550.2,2550.1,43.412]
[1748101659294,0.7978,2550.8,2550.1,43.412]
[1748101659793,3.92099599,2550.4,2550.1,43.412]
[1748101660300,3.92099599,2550.4,2550.1,16.964]
[1748101660505,3.92099599,2550.4,2550.2,26.448]
[1748101660910,3.92119187,2550.3,2550.1,16.964]
[1748101661203,3.92119187,2550.3,2550.2,26.449]
[1748101661385,3.92119187,2550.3,2550.1,16.964]
[1748101661588,3.92119187,2550.3,2550.2,26.449]
[1748101661992,3.92106111,2550.4,2550.2,26.449]
[1748101662812,3.92106111,2550.4,2550.3,26.45]
[1748101663313,8.0,2551.1,2550.4,0.8003]
[1748101663314,3.92068364,2550.6,2550.4,0.8003]
[1748101663463,3.92004406,2551.0,2550.4,0.8003]
[1748101663663,3.92009982,2551.0,2550.5,4.39551189]
[1748101663905,3.92001535,2551.1,2550.5,0.47471819]
[1748101664061,3.91934399,2551.5,2550.9,3.92004242]
[1748101664263,3.91934399,2551.5,2550.6,1.87709627]
[1748101664264,3.91965055,2551.3,2551.1,0.8003]
[1748101664497,3.91957041,2551.3,2551.2,16.917]
[1748101664705,3.91957041,2551.3,2551.2,43.367]
[1748101668301,3.91957041,2551.3,2551.2,43.365]
[1748101670812,3.91957041,2551.3,2551.2,31.618]
[1748101670971,3.91957041,2551.3,2551.2,43.364]
[1748101671505,3.91957041,2551.3,2551.2,16.917]
[1748101671711,3.91957041,2551.3,2551.2,43.363]
[1748101672710,3.91957041,2551.3,2551.2,16.917]
[1748101672924,3.91957041,2551.3,2551.2,43.363]
[1748101673221,3.91957041,2551.3,2551.2,16.917]
[1748101673525,3.91957041,2551.3,2551.2,43.362]
[1748101673726,3.91957041,2551.3,2551.2,16.917]
[1748101674028,3.91957041,2551.3,2551.2,43.362]
[1748101674225,3.91957041,2551.3,2551.2,16.917]
[1748101674414,3.91957041,2551.3,2551.2,43.362]
[1748101674797,3.91957041,2551.3,2551.2,31.616]
[1748101675014,3.91957041,2551.3,2551.2,43.362]
[1748101676208,4.71137041,2551.3,2551.2,43.362]
[1748101676408,4.71137041,2551.3,2551.2,16.917]
[1748101676708,4.71137041,2551.3,2551.2,43.362]
[1748101677433,4.71137041,2551.3,2551.2,31.616]
[1748101677755,4.71137041,2551.3,2551.2,43.362]
[1748101677951,4.71137041,2551.3,2551.2,31.616]
[1748101678174,5.44965175,2551.3,2551.2,43.362]
[1748101678455,13.44965175,2551.3,2551.2,31.616]
[1748101679345,13.44965175,2551.3,2551.2,16.917]
[1748101679551,13.44965175,2551.3,2551.2,31.616]
[1748101680053,13.44965175,2551.3,2551.2,16.917]
[1748101680349,13.44965175,2551.3,2551.2,31.616]
[1748101680350,13.99965175,2551.3,2551.2,31.616]
[1748101683059,13.99965175,2551.3,2551.2,16.917]
[1748101683365,18.88020696,2551.3,2551.2,31.617]
[1748101684257,4.71596107,2550.2,2550.1,0.05]
[1748101684454,4.71596107,2550.2,2550.1,43.413]
[1748101685157,3.92126107,2550.2,2550.1,31.666]
[1748101685377,3.92126107,2550.2,2550.1,44.1789]
[1748101685563,3.92126107,2550.2,2550.1,44.65361819]
[1748101686077,3.92126107,2550.2,2550.1,43.414]
[1748101686281,3.92126107,2550.2,2550.1,16.966]
[1748101686484,3.92126107,2550.2,2550.1,43.438]
[1748101687478,3.92126107,2550.2,2550.1,16.966]
[1748101687683,3.92126107,2550.2,2550.1,43.439]
[1748101690186,3.92126107,2550.2,2550.1,16.966]
[1748101690396,3.92126107,2550.2,2550.1,43.439]
[1748101690896,3.92126107,2550.2,2550.1,16.966]
[1748101691070,3.92126107,2550.2,2550.1,43.99481749]
[1748101691269,3.92126107,2550.2,2550.1,43.439]
[1748101692108,3.92126107,2550.2,2550.1,16.966]
[1748101692307,3.92126107,2550.2,2550.1,43.44]
[1748101694393,3.92126107,2550.2,2550.1,31.692]
[1748101694567,4.71996107,2550.2,2550.1,43.441]
[1748101695707,4.71996107,2550.2,2550.1,31.692]
[1748101695876,5.58406796,2550.2,2550.1,43.441]
[1748101697406,5.58406796,2550.2,2550.1,0.05]
[1748101697607,13.59084624,2550.2,2550.1,16.97]
[1748101697772,13.55156796,2550.2,2550.1,31.697]
[1748101698171,18.43212317,2550.2,2550.1,31.697]
[1748101700083,4.88055521,2550.2,2550.1,31.697]
[1748101700385,3.9198726,2551.2,2550.2,0.7931]
[1748101700386,0.8017,2550.8,2550.2,0.7931]
[1748101700586,3.92049241,2550.7,2550.3,12.26306508]
[1748101700799,3.92095357,2550.4,2550.3,11.75]
[1748101702119,3.9208672,2550.5,2550.3,11.75]
[1748101702772,3.91957041,2551.3,2550.4,0.7931]
[1748101702988,3.92034862,2550.8,2550.4,1.26695631]
[1748101703187,3.91957041,2551.3,2550.5,0.7931]
[1748101703529,3.91957041,2551.3,2550.6,14.727]
[1748101703698,3.92041895,2550.8,2550.7,11.75]
[1748101704024,3.91992186,2551.1,2550.7,11.75]
[1748101704185,3.91910957,2551.6,2550.8,0.7931]
[1748101704386,3.92018503,2550.9,2550.8,0.7931]
[1748101705223,3.92049241,2550.7,2550.6,14.727]
[1748101705424,3.92049241,2550.7,2550.6,26.477]
[1748101705996,3.91932644,2551.5,2550.6,26.477]
[1748101706195,3.92026806,2550.9,2550.6,26.477]
[1748101706395,3.92027365,2550.9,2550.6,26.477]
[1748101706643,3.92028153,2550.9,2550.6,26.477]
[1748101707336,3.92037308,2550.8,2550.6,26.477]
[1748101707495,3.92022567,2550.9,2550.6,26.477]
[1748101707897,3.92036048,2550.8,2550.6,26.477]
[1748101711866,3.92049241,2550.7,2550.6,14.727]
[1748101712078,3.92049241,2550.7,2550.6,26.475]
[1748101712936,3.92126107,2550.2,2550.1,16.97]
[1748101713169,3.92126107,2550.2,2550.1,43.442]
[1748101714266,3.92126107,2550.2,2550.1,31.694]
[1748101714467,12.7055,2550.2,2550.1,43.442]
[1748101714830,3.92126107,2550.2,2550.1,43.442]
[1748101716679,3.92126107,2550.2,2550.1,16.97]
[1748101716832,3.92126107,2550.2,2550.1,31.766]
[1748101717038,3.92126107,2550.2,2550.1,43.515]
[1748101718881,4.74383935,2550.2,2550.1,16.97]
[1748101719173,4.74383935,2550.2,2550.1,43.518]
[1748101719174,5.4888,2550.2,2550.1,43.518]
[1748101722300,13.4888,2550.2,2550.1,31.768]
[1748101722588,13.4888,2550.2,2550.1,43.518]
[1748101724292,13.4888,2550.2,2550.1,31.768]
[1748101724598,13.4888,2550.2,2550.1,43.518]
[1748101726095,13.4888,2550.2,2550.1,31.768]
[1748101726397,13.4888,2550.2,2550.1,43.519]
[1748101729603,13.4888,2550.2,2550.1,31.768]
[1748101729933,18.91935521,2550.2,2550.1,31.768]
[1748101741135,18.91935521,2550.2,2550.1,31.773]
[1748101745652,29.10935521,2550.2,2550.1,31.773]